bitfinex/quotes_ETHUSD_20210701
["timestamp","ask_amount","ask_price","bid_price","bid_amount"]
[1625158388509,0.2,2090.5,2089.2,10.5301]
[1625158388665,0.2,2090.5,2089.0,3.75135109]
[1625158388666,0.33389532,2090.4,2089.0,0.02223222]
[1625158388757,4.386,2090.0,2089.0,0.02223222]
[1625158389301,0.08,2089.9,2089.0,0.02223222]
[1625158389557,3.66798,2089.9,2089.0,0.02223222]
[1625158389898,9.56915,2089.8,2089.0,0.02223222]
[1625158390000,3.58798,2089.9,2089.0,0.02223222]
[1625158390454,3.6,2089.4,2089.0,4.68570379]
[1625158390605,10.57425687,2090.7,2089.2,29.55]
[1625158390827,10.3523,2090.7,2089.2,41.9249]
[1625158390976,3.7,2090.5,2089.3,4.81347157]
[1625158391126,10.3523,2090.7,2089.3,24.82347157]
[1625158391224,7.17283,2090.9,2089.5,9.56338]
[1625158391324,20.87720823,2091.0,2089.5,9.56338]
[1625158391427,20.87720823,2091.0,2089.5,8.0]
[1625158391575,0.18,2090.8,2089.5,5.01]
[1625158391774,0.18,2090.8,2089.3,5.16]
[1625158391956,17.29062823,2091.0,2089.6,4.66347157]
[1625158392047,22.30062823,2091.0,2089.6,9.67347157]
[1625158392247,17.29062823,2091.0,2089.6,17.82347157]
[1625158392448,10.6903,2091.0,2089.6,17.82347157]
[1625158392546,10.6903,2091.0,2089.6,32.82347157]
[1625158392647,3.58634,2091.3,2089.6,32.82347157]
[1625158393200,3.58634,2091.3,2089.6,36.40884227]
[1625158393301,10.832,2091.4,2089.6,36.40836157]
[1625158393402,0.01031005,2091.2,2089.6,37.75516157]
[1625158393597,0.01031005,2091.2,2089.9,7.8952]
[1625158393699,0.01031005,2091.2,2090.0,15.0]
[1625158393800,0.01031005,2091.2,2090.0,8.15]
[1625158393902,0.01031005,2091.2,2090.5,7.16977]
[1625158394005,0.01031005,2091.2,2090.5,10.31577]
[1625158394102,0.01031005,2091.2,2090.5,8.306]
[1625158394243,0.01031005,2091.2,2090.5,16.306]
[1625158395194,0.01031005,2091.2,2090.6,7.16963]
[1625158395293,0.01031005,2091.2,2090.5,16.306]
[1625158395441,0.01031005,2091.2,2090.5,8.306]
[1625158397190,0.01031005,2091.2,2090.5,16.306]
[1625158398595,0.01031005,2091.2,2090.5,20.96947157]
[1625158398905,0.01031005,2091.2,2090.5,35.96947157]
[1625158399206,0.01031005,2091.2,2090.6,0.08]
[1625158399407,0.01031005,2091.2,2090.7,0.15]
[1625158399507,0.01031005,2091.2,2090.7,4.81347157]
[1625158399759,0.01031005,2091.2,2090.7,17.82347157]
[1625158400058,0.01031005,2091.2,2090.7,32.82347157]
[1625158400410,0.01031005,2091.2,2090.8,7.16905]
[1625158400562,0.01031005,2091.2,2090.9,15.0]
[1625158400661,0.01031005,2091.2,2090.9,12.81347157]
[1625158400762,0.01031005,2091.2,2090.9,9.82347157]
[1625158400982,0.01031005,2091.2,2090.9,15.54304]
[1625158401076,0.01031005,2091.2,2090.9,13.16]
[1625158401429,0.01031005,2091.2,2090.9,0.15]
[1625158401881,0.01031005,2091.2,2090.4,10.2736]
[1625158401979,0.01031005,2091.2,2090.4,10.4236]
[1625158402883,0.01031005,2091.2,2090.4,12.80664]
[1625158403034,0.01031005,2091.2,2090.4,15.08707157]
[1625158404043,0.01031005,2091.2,2090.4,23.08707157]
[1625158404144,0.01031005,2091.2,2090.4,29.53637157]
[1625158404393,0.01031005,2091.2,2090.5,7.16992]
[1625158404498,0.01031005,2091.2,2090.5,11.97202]
[1625158404594,0.01031005,2091.2,2090.5,16.98202]
[1625158404698,0.01031005,2091.2,2090.6,0.15]
[1625158405596,0.01031005,2091.2,2090.6,7.31964]
[1625158405700,0.01031005,2091.2,2090.6,15.31964]
[1625158405873,0.01031005,2091.2,2090.6,24.99311157]
[1625158405971,0.01031005,2091.2,2090.6,17.82347157]
[1625158406215,0.01031005,2091.2,2090.7,0.12]
[1625158406469,0.01031005,2091.2,2090.8,0.15]
[1625158407121,0.01031005,2091.2,2090.8,7.31894]
[1625158407220,0.01031005,2091.2,2090.8,19.98241157]
[1625158407321,0.01031005,2091.2,2090.8,17.82347157]
[1625158407704,0.01031005,2091.2,2090.8,13.01]
[1625158408301,0.01031005,2091.2,2090.8,5.01]
[1625158408403,0.01031005,2091.2,2090.5,9.5201]
[1625158408504,0.01031005,2091.2,2090.5,8.0]
[1625158408654,0.01031005,2091.2,2090.5,13.01]
[1625158409204,0.01031005,2091.2,2090.4,18.4236]
[1625158409205,0.01031005,2091.2,2090.4,10.2736]
[1625158409407,0.08,2091.1,2090.4,10.2736]
[1625158409559,7.17201,2091.1,2090.4,10.2736]
[1625158410444,11.46941,2091.1,2090.4,15.2836]
[1625158411294,11.46941,2091.1,2090.4,10.2736]
[1625158411392,0.04,2091.0,2090.4,10.2736]
[1625158411496,3.58675,2090.9,2090.4,10.2736]
[1625158411742,7.17358,2090.9,2090.4,10.2736]
[1625158411845,13.77390823,2090.9,2090.4,10.2736]
[1625158412212,7.1735,2090.7,2090.4,10.2736]
[1625158412313,7.1735,2090.7,2089.8,11.0914]
[1625158412514,0.16,2090.6,2089.8,11.0914]
[1625158412666,9.56466,2090.8,2089.8,11.0914]
[1625158413164,10.18715823,2090.9,2089.8,11.0914]
[1625158413267,13.77293823,2090.9,2089.8,18.26401]
[1625158413366,7.17261,2090.9,2089.8,35.8315927]
[1625158413466,14.34774,2091.0,2089.8,37.1930927]
[1625158413567,4.78233,2091.0,2089.8,37.3430927]
[1625158413718,4.78233,2091.0,2089.8,52.3430927]
[1625158413814,4.78233,2091.0,2089.8,37.3430927]
[1625158414266,11.95429,2091.0,2089.8,37.3430927]
[1625158414462,4.78233,2091.0,2089.8,37.3430927]
[1625158414605,3.58607,2090.7,2089.8,30.1704827]
[1625158414856,3.58607,2090.7,2089.8,27.95469196]
[1625158415559,3.58607,2090.7,2089.8,30.1704827]
[1625158415656,3.58607,2090.7,2089.8,45.1704827]
[1625158415857,3.58607,2090.7,2089.9,0.08]
[1625158416006,3.58607,2090.7,2090.0,0.15]
[1625158416556,3.58607,2090.7,2090.0,2.49179196]
[1625158416805,3.58607,2090.7,2090.3,7.17092]
[1625158417003,3.58607,2090.7,2090.4,0.15]
[1625158417103,3.58607,2090.7,2090.4,3.4427]
[1625158417304,3.58607,2090.7,2090.4,8.4527]
[1625158419296,3.58607,2090.7,2090.4,8.3027]
[1625158419999,0.01370212,2090.9,2090.4,8.3027]
[1625158420552,3.59951212,2090.9,2090.4,8.3027]
[1625158420751,3.59951212,2090.9,2090.4,16.3027]
[1625158420916,3.59951212,2090.9,2090.4,3.2927]
[1625158421017,3.59951212,2090.9,2090.2,7.32153]
[1625158422228,3.59951212,2090.9,2090.2,12.33153]
[1625158422327,3.59951212,2090.9,2090.2,15.32153]
[1625158422427,3.59951212,2090.9,2090.2,20.33153]
[1625158422532,3.59951212,2090.9,2090.4,7.17091]
[1625158422778,3.59951212,2090.9,2090.5,0.15]
[1625158424005,3.59951212,2090.9,2090.5,8.15]
[1625158424209,3.59951212,2090.9,2090.5,13.16]
[1625158424307,3.59951212,2090.9,2090.5,17.7265]
[1625158424407,3.59951212,2090.9,2090.6,7.17024]
[1625158424658,3.59951212,2090.9,2090.6,12.18024]
[1625158424759,3.59951212,2090.9,2090.5,5.16]
[1625158424860,3.59951212,2090.9,2090.5,5.01]
[1625158424962,4.22860212,2090.9,2090.1,9.56117]
[1625158425060,5.58840212,2090.9,2090.1,9.56117]
[1625158425614,4.22860212,2090.9,2090.1,9.56117]
[1625158425722,4.22860212,2090.9,2089.9,0.15]
[1625158425821,11.40053212,2090.9,2089.9,0.15]
[1625158426374,11.40053212,2090.9,2089.9,8.15]
[1625158426523,11.40053212,2090.9,2089.9,0.15]
[1625158426674,3.586,2090.6,2089.9,5.16]
[1625158426774,3.586,2090.6,2089.9,0.15]
[1625158426876,11.40053212,2090.9,2089.9,5.16]
[1625158426877,4.22860212,2090.9,2089.9,5.16]
[1625158426976,7.17297,2090.6,2089.9,5.16]
[1625158427276,7.17297,2090.6,2089.9,0.15]
[1625158427724,7.17297,2090.6,2089.9,1.27874017]
[1625158427968,3.58649,2090.3,2089.9,1.27874017]
[1625158428172,3.58649,2090.3,2089.9,1.12874017]
[1625158428267,3.58649,2090.3,2089.9,9.12874017]
[1625158428371,3.58649,2090.3,2089.9,1.12874017]
[1625158428468,3.58649,2090.3,2089.9,6.13874017]
[1625158428618,3.58649,2090.3,2089.9,1.12874017]
[1625158428717,3.58649,2090.3,2089.9,6.13874017]
[1625158428965,3.58649,2090.3,2089.9,1.12874017]
[1625158430517,0.01370212,2090.9,2090.0,0.15]
[1625158430767,0.01370212,2090.9,2090.0,0.23]
[1625158430963,0.01370212,2090.9,2090.1,4.55839307]
[1625158431067,0.01370212,2090.9,2090.5,7.17078]
[1625158431168,0.01370212,2090.9,2090.5,11.11808]
[1625158431265,0.01370212,2090.9,2090.5,16.27808]
[1625158431469,0.01370212,2090.9,2090.5,24.27808]
[1625158431667,0.01370212,2090.9,2090.5,17.1073]
[1625158432171,0.01370212,2090.9,2090.7,7.17016]
[1625158432368,0.01370212,2090.9,2090.7,5.01]
[1625158432608,0.01370212,2090.9,2090.5,26.66719]
[1625158432711,3.59918212,2090.9,2090.5,26.66719]
[1625158432858,3.54918212,2090.9,2090.5,26.66719]
[1625158432957,3.54918212,2090.9,2090.5,17.0573]
[1625158433314,10.72090212,2090.9,2090.5,8.9573]
[1625158433412,10.72090212,2090.9,2090.4,1.4251]
[1625158433516,10.72090212,2090.9,2089.9,1.27874017]
[1625158433517,3.54918212,2090.9,2089.9,1.12874017]
[1625158433614,0.08,2090.8,2089.9,1.12874017]
[1625158433963,0.06,2090.7,2089.9,1.12874017]
[1625158434214,0.01370212,2090.9,2089.9,1.12874017]
[1625158434311,3.58696,2090.7,2089.9,1.12874017]
[1625158434415,3.58688,2090.2,2089.9,1.12874017]
[1625158435537,7.17514,2090.1,2089.9,1.12874017]
[1625158435736,0.1,2090.0,2089.2,20.24065]
[1625158435973,7.17514,2090.1,2089.2,20.24065]
[1625158436371,3.58688,2090.2,2089.2,28.24065]
[1625158436470,0.0132862,2089.9,2089.2,23.6867]
[1625158436773,0.0132862,2089.9,2089.5,7.17425]
[1625158436873,0.0132862,2089.9,2089.5,12.03485]
[1625158436992,3.58688,2090.2,2089.5,17.04485]
[1625158437078,3.58688,2090.2,2089.5,25.04485]
[1625158437177,3.58688,2090.2,2089.5,17.8706]
[1625158437681,3.58688,2090.2,2089.5,4.8606]
[1625158437979,3.58688,2090.2,2089.7,7.17356]
[1625158438180,3.58688,2090.2,2089.3,9.56566]
[1625158440013,3.58688,2090.2,2089.3,14.57566]
[1625158440263,3.58688,2090.2,2089.3,22.57566]
[1625158440665,3.58688,2090.2,2089.4,0.15]
[1625158440765,3.58688,2090.2,2089.4,4.3785]
[1625158440865,3.58688,2090.2,2089.4,9.3885]
[1625158440962,3.58688,2090.2,2089.4,9.3085]
[1625158443366,10.76175,2090.2,2089.4,16.48322]
[1625158443707,3.58688,2090.2,2089.4,16.48322]
[1625158444110,3.58688,2090.2,2089.4,18.49333369]
[1625158444213,4.78223,2090.6,2089.4,18.49333369]
[1625158444414,13.77318823,2090.8,2089.4,18.49333369]
[1625158444565,3.58657,2090.5,2089.4,18.49333369]
[1625158445512,10.75992,2090.5,2089.4,18.49333369]
[1625158445978,3.58657,2090.5,2089.4,18.49333369]
[1625158447126,0.01158426,2090.4,2089.4,18.49333369]
[1625158448216,7.18525426,2090.4,2089.4,18.49333369]
[1625158449471,0.01158426,2090.4,2089.4,18.49333369]
[1625158451262,0.01158426,2090.4,2089.4,33.49333369]
[1625158451562,0.01158426,2090.4,2089.4,18.49333369]
[1625158452364,0.01158426,2090.4,2089.5,15.0]
[1625158452468,0.01158426,2090.4,2089.6,3.5862542]
[1625158452564,0.01158426,2090.4,2089.6,8.7462542]
[1625158453465,0.01158426,2090.4,2089.9,7.17305]
[1625158453563,0.01158426,2090.4,2089.9,20.18305]
[1625158454967,0.01158426,2090.4,2090.0,0.15]
[1625158455064,0.01158426,2090.4,2090.0,3.3489]
[1625158455221,0.01158426,2090.4,2090.1,0.06]
[1625158455417,0.01158426,2090.4,2090.2,0.15]
[1625158455917,0.01158426,2090.4,2090.2,7.3215]
[1625158456017,0.01158426,2090.4,2090.2,20.3315]
[1625158456120,0.01158426,2090.4,2090.2,13.16]
[1625158456577,4.26e-06,2090.4,2090.3,15.18]
[1625158456676,4.26e-06,2090.4,2090.3,20.19]
[1625158456818,4.26e-06,2090.4,2090.3,20.34]
[1625158456917,4.26e-06,2090.4,2090.3,24.63389531]
[1625158457019,4.26e-06,2090.4,2090.3,28.09389531]
[1625158457221,15.02623041,2091.7,2090.3,35.26478531]
[1625158457318,3.58477,2091.7,2090.3,35.26478531]
[1625158457433,3.58477,2091.7,2090.3,35.08478531]
[1625158457516,3.58477,2091.7,2090.3,31.62478531]
[1625158457617,10.1514,2092.1,2090.5,3.46]
[1625158457720,10.1514,2092.1,2090.5,8.2231]
[1625158457821,3.58432,2092.0,2090.7,3.5841975]
[1625158457972,10.1514,2092.1,2090.8,0.15]
[1625158458123,0.06,2091.8,2090.9,0.15]
[1625158458218,0.06,2091.8,2090.7,7.17004]
[1625158458219,7.16986,2091.6,2090.7,7.17004]
[1625158458366,7.16986,2091.6,2090.6,9.55747]
[1625158458469,7.16986,2091.6,2090.8,0.15]
[1625158459567,12.17986,2091.6,2090.8,0.15]
[1625158459769,0.04,2091.5,2090.8,0.15]
[1625158459869,13.47032823,2091.9,2090.8,0.15]
[1625158460367,6.60032823,2091.9,2090.8,0.15]
[1625158460467,7.16915,2091.8,2090.8,7.31959]
[1625158460623,3.58466,2092.0,2090.9,15.0]
[1625158460819,3.58466,2092.0,2091.0,0.15]
[1625158461620,10.1235,2092.3,2091.0,0.15]
[1625158461731,10.1235,2092.3,2091.0,2.33478869]
[1625158461825,10.1235,2092.3,2091.4,11.2224]
[1625158461925,7.16784,2092.4,2091.4,11.2224]
[1625158462023,7.16784,2092.4,2091.4,24.3824]
[1625158462680,0.51406041,2092.6,2091.4,17.2149]
[1625158462784,0.51406041,2092.9,2091.4,17.2149]
[1625158462876,5.97552,2092.7,2091.4,17.2149]
[1625158463432,7.16746,2092.3,2091.4,24.3824]
[1625158464662,7.16746,2092.3,2091.4,17.2149]
[1625158464766,3.58407,2092.1,2091.4,4.2049]
[1625158464868,3.58407,2092.1,2091.4,0.15]
[1625158464968,8.59407,2092.1,2091.4,0.15]
[1625158465118,12.22777,2092.1,2090.9,10.0756]
[1625158465214,8.6437,2092.1,2090.9,10.0756]
[1625158465515,3.6337,2092.1,2090.9,10.0756]
[1625158465616,3.58506,2091.6,2090.9,10.0756]
[1625158465717,4.77946,2092.3,2090.9,10.0756]
[1625158465816,4.77946,2092.3,2091.0,5.1227]
[1625158466059,4.77946,2092.3,2091.0,10.2727]
[1625158466263,4.77946,2092.3,2091.0,5.1227]
[1625158466398,4.77946,2092.3,2091.0,10.1327]
[1625158466500,14.28324844,2092.6,2091.0,5.1227]
[1625158466501,3.58424,2092.0,2091.0,5.1227]
[1625158466596,3.58424,2092.0,2091.0,10.1327]
[1625158466797,3.58424,2092.0,2091.1,0.08]
[1625158466898,3.58424,2092.0,2091.4,7.16743]
[1625158467147,3.58424,2092.0,2091.4,5.01]
[1625158467247,3.58424,2092.0,2091.2,8.15]
[1625158467347,3.58424,2092.0,2091.2,13.16]
[1625158467897,3.58424,2092.0,2091.0,4.9727]
[1625158468000,7.16962,2091.7,2091.0,4.9727]
[1625158468100,3.58518,2091.4,2091.0,4.9727]
[1625158469175,3.58424,2092.0,2091.0,4.9727]
[1625158469319,0.01071445,2091.9,2091.0,10.1327]
[1625158469422,0.01071445,2091.9,2091.0,5.1227]
[1625158469518,0.01071445,2091.9,2091.0,10.1327]
[1625158469617,3.58448,2091.8,2091.0,5.1227]
[1625158469717,3.58448,2091.8,2091.0,10.1327]
[1625158469866,3.58448,2091.8,2091.0,5.1227]
[1625158471009,3.58448,2091.8,2091.0,10.1327]
[1625158471110,3.58448,2091.8,2091.0,5.1227]
[1625158471212,3.58448,2091.8,2091.0,10.1327]
[1625158471412,3.58448,2091.8,2091.0,17.30151]
[1625158471964,3.58448,2091.8,2091.0,10.1327]
[1625158472161,0.01071445,2091.9,2091.0,10.1327]
[1625158472463,0.01071445,2091.9,2091.0,18.1327]
[1625158472565,3.58494,2091.6,2091.0,18.1327]
[1625158472664,0.01071445,2091.9,2091.0,18.1327]
[1625158472815,0.01071445,2091.9,2091.1,0.08]
[1625158473113,0.01071445,2091.9,2091.0,18.1327]
[1625158473313,0.01071445,2091.9,2091.0,17.9827]
[1625158473413,0.01071445,2091.9,2091.1,0.15]
[1625158474016,0.01071445,2091.9,2091.4,7.16775]
[1625158474115,0.01071445,2091.9,2091.0,27.54059]
[1625158474414,0.01071445,2091.9,2091.0,19.54059]
[1625158474518,0.01071445,2091.9,2091.0,27.54059]
[1625158474964,0.01071445,2091.9,2091.1,0.04]
[1625158475063,0.01071445,2091.9,2091.1,0.19]
[1625158475222,0.01071445,2091.9,2091.1,0.15]
[1625158475580,0.01071445,2091.9,2091.4,7.16784]
[1625158475775,0.01071445,2091.9,2091.4,12.17784]
[1625158476080,6.87,2092.3,2091.4,27.17784]
[1625158476183,6.87,2092.9,2092.3,2.28012657]
[1625158476279,6.87,2092.9,2092.3,5.74812657]
[1625158476383,6.87,2092.9,2092.4,0.15]
[1625158476683,6.87,2092.9,2092.5,7.16356]
[1625158476877,6.87,2092.9,2092.6,0.15]
[1625158477180,6.87,2093.7,2092.6,0.19]
[1625158477461,10.3254,2093.8,2092.7,0.06]
[1625158477520,10.3254,2093.8,2092.6,1.5049]
[1625158477619,10.3254,2093.8,2092.7,0.15]
[1625158478421,10.3254,2093.8,2093.0,7.16249]
[1625158478521,7.16261,2094.1,2093.0,16.57379]
[1625158478620,7.16261,2094.1,2093.1,0.15]
[1625158478721,10.18153823,2094.3,2093.1,0.15]
[1625158479127,0.06,2094.2,2093.1,0.15]
[1625158479477,7.22247,2094.2,2093.1,0.15]
[1625158479736,11.99397,2094.2,2092.6,20.8569]
[1625158479823,16.22855195,2094.2,2092.6,20.8569]
[1625158479921,21.23855195,2094.2,2092.6,20.8569]
[1625158480177,0.11021108,2094.1,2092.6,20.8569]
[1625158480375,0.01021108,2094.1,2092.6,20.8569]
[1625158480878,10.49169,2093.6,2092.6,28.02094]
[1625158481107,10.49169,2093.6,2092.6,33.03094]
[1625158481250,3.3273,2093.6,2092.6,33.03094]
[1625158481403,3.3273,2093.6,2092.6,41.03094]
[1625158481549,3.3273,2093.6,2092.6,33.8669]
[1625158481650,3.3273,2093.6,2092.6,25.8669]
[1625158482183,0.01021108,2094.1,2092.6,25.8669]
[1625158482932,7.16354,2093.8,2092.9,9.54966]
[1625158483085,7.16354,2093.8,2092.9,14.55966]
[1625158483234,0.01021108,2094.1,2092.9,14.55966]
[1625158483332,0.01021108,2094.1,2092.9,19.14516]
[1625158483435,0.01021108,2094.1,2092.9,27.14516]
[1625158483633,0.01021108,2094.1,2092.9,19.14516]
[1625158484422,7.17305108,2094.1,2092.9,19.14516]
[1625158485378,7.17305108,2094.1,2093.0,0.15]
[1625158485473,7.17305108,2094.1,2093.2,7.16215]
[1625158485574,12.18305108,2094.1,2093.2,7.16215]
[1625158485675,12.18305108,2094.1,2093.2,7.31215]
[1625158486375,7.17305108,2094.1,2093.2,7.31215]
[1625158487026,7.17305108,2094.1,2093.2,7.26749574]
[1625158487479,7.17305108,2094.1,2093.2,0.15]
[1625158487583,7.26974,2093.9,2093.2,0.15]
[1625158487679,7.26974,2093.9,2092.9,5.01]
[1625158487779,12.27974,2093.9,2092.7,14.71054]
[1625158488228,19.14974,2093.9,2092.7,14.71054]
[1625158488581,26.31316,2093.9,2092.7,14.71054]
[1625158490043,19.14974,2093.9,2092.7,14.71054]
[1625158490245,3.58198,2093.6,2092.7,14.71054]
[1625158490350,3.58198,2093.6,2092.7,0.15]
[1625158490447,15.19230823,2093.6,2092.6,10.366]
[1625158490549,16.28640823,2093.6,2092.6,10.366]
[1625158490645,0.06,2093.5,2092.6,10.366]
[1625158490753,7.16558,2093.1,2092.6,10.366]
[1625158490850,9.55346,2093.4,2092.6,10.366]
[1625158491987,7.16535,2093.1,2092.6,10.366]
[1625158493140,3.58284,2093.2,2092.6,10.366]
[1625158493244,15.19228823,2093.6,2092.6,10.366]
[1625158494190,7.16432,2093.4,2092.6,17.53017]
[1625158494793,7.16432,2093.4,2092.6,22.54017]
[1625158496338,7.16432,2093.4,2092.6,17.53017]
[1625158496440,7.16432,2093.4,2092.6,17.33017]
[1625158498953,11.59402,2093.4,2092.6,10.166]
[1625158499051,15.17642,2093.4,2092.6,10.166]
[1625158499202,8.0121,2093.4,2092.6,10.166]
[1625158499355,8.0121,2093.4,2092.2,9.5532]
[1625158499455,0.30985659,2093.3,2092.0,10.671]
[1625158499605,0.30985659,2093.3,2092.0,10.521]
[1625158500096,7.16669,2092.7,2092.0,17.68729]
[1625158500196,7.16669,2092.7,2092.0,7.16629]
[1625158500597,7.16669,2092.7,2091.9,10.4607]
[1625158501153,7.16669,2092.7,2091.9,15.4707]
[1625158501246,7.16669,2092.7,2091.9,10.4607]
[1625158501347,7.16669,2092.7,2091.9,15.4707]
[1625158501646,0.01296257,2092.6,2091.9,15.4707]
[1625158502789,3.44026257,2092.6,2091.9,10.4607]
[1625158503139,3.44026257,2092.6,2091.9,15.4707]
[1625158503393,3.58366,2092.4,2091.9,10.4607]
[1625158503642,3.58366,2092.4,2091.8,10.8145]
[1625158503740,3.58366,2092.4,2091.6,12.17738]
[1625158506594,10.75066,2092.4,2091.6,12.17738]
[1625158507137,3.58366,2092.4,2091.6,12.17738]
[1625158507393,3.58366,2092.4,2091.5,0.15]
[1625158507491,1.39,2092.4,2091.3,10.2392]
[1625158507738,1.60213804,2092.4,2091.3,10.2392]
[1625158507940,0.06,2092.3,2091.3,10.2392]
[1625158508243,7.99032823,2092.4,2091.3,10.2392]
[1625158508339,6.81397628,2092.4,2091.3,10.2392]
[1625158508443,7.16843,2092.0,2091.3,17.40763]
[1625158508593,9.55745,2092.3,2091.3,7.16843]
[1625158508691,9.55745,2092.3,2091.3,12.17843]
[1625158509189,3.58405,2092.1,2091.3,12.17843]
[1625158509292,3.58405,2092.1,2091.3,20.17843]
[1625158509393,0.01223226,2091.8,2091.3,15.47374004]
[1625158509642,6.60032823,2092.4,2091.4,0.08]
[1625158509792,13.76741823,2092.4,2091.7,7.16709]
[1625158509892,13.76741823,2092.4,2091.4,9.55612]
[1625158509989,3.58385,2092.3,2091.4,14.56612]
[1625158510741,3.58385,2092.3,2091.4,22.56612]
[1625158510844,3.58385,2092.3,2091.5,0.15]
[1625158510947,0.01296257,2092.6,2091.5,4.1205]
[1625158511046,0.01296257,2092.6,2091.5,9.1305]
[1625158511241,6.88296257,2092.6,2091.6,4.79405408]
[1625158511498,6.88296257,2092.6,2091.7,0.15]
[1625158511790,6.88296257,2092.6,2091.8,2.46374004]
[1625158512043,6.88296257,2092.6,2091.9,0.15]
[1625158512495,6.88296257,2092.6,2092.1,12.17951]
[1625158512698,6.88296257,2092.6,2092.1,17.33951]
[1625158513249,0.01296257,2092.6,2092.1,25.33951]
[1625158513648,0.01296257,2092.6,2092.3,7.16471]
[1625158513747,14.0347,2093.1,2092.3,7.16471]
[1625158513848,14.0347,2093.1,2092.4,0.15]
[1625158514106,6.87,2093.1,2092.4,0.15]
[1625158514597,6.87,2093.1,2092.5,0.12]
[1625158514696,6.87,2093.1,2092.8,7.16161]
[1625158514799,7.10922396,2094.0,2092.8,11.45081]
[1625158514895,7.10922396,2094.0,2092.8,16.46081]
[1625158514995,7.10922396,2094.0,2092.9,0.33]
[1625158515194,7.10922396,2094.0,2092.9,0.15]
[1625158515645,7.10922396,2094.0,2092.9,2.61374004]
[1625158515746,7.10922396,2094.0,2092.9,17.61374004]
[1625158515846,7.10922396,2094.0,2092.9,22.62374004]
[1625158516048,7.10922396,2094.0,2093.4,7.16084]
[1625158516198,7.10922396,2094.0,2093.5,0.15]
[1625158516351,2.1306,2094.2,2093.5,0.15]
[1625158516530,2.1306,2094.2,2093.6,0.06]
[1625158516678,0.48116017,2094.5,2093.7,29.75]
[1625158516778,0.48116017,2094.5,2093.7,44.75]
[1625158516879,0.83019,2095.0,2093.7,57.76]
[1625158517026,10.6724,2095.2,2093.7,57.76]
[1625158517127,10.6724,2095.2,2093.8,2.62374004]
[1625158517227,17.5424,2095.2,2093.8,2.62374004]
[1625158517326,17.5424,2095.2,2093.9,3.3136]
[1625158517529,17.5424,2095.2,2093.9,8.3236]
[1625158518429,24.70054,2095.2,2094.2,7.15793]
[1625158518581,14.02814,2095.2,2094.3,0.15]
[1625158518932,20.2,2095.1,2094.2,7.7172]
[1625158519080,14.02814,2095.2,2094.3,0.15]
[1625158519435,6.87,2095.2,2094.3,0.15]
[1625158520233,43.6264,2095.7,2094.3,0.15]
[1625158520331,33.604,2095.7,2094.3,0.15]
[1625158520433,7.15748,2095.5,2094.3,7.3072]
[1625158520581,7.15748,2095.5,2094.3,12.3172]
[1625158520680,7.15748,2095.5,2094.3,5.16]
[1625158520930,7.15748,2095.5,2094.3,0.15]
[1625158521080,7.15748,2095.5,2094.3,5.16]
[1625158521179,7.15748,2095.5,2094.3,0.15]
[1625158521180,13.33648,2095.5,2094.3,0.15]
[1625158521277,13.33648,2095.5,2094.3,5.16]
[1625158521482,13.33648,2095.5,2094.3,0.15]
[1625158521831,18.34648,2095.5,2094.3,0.15]
[1625158521930,13.33648,2095.5,2094.3,0.15]
[1625158522785,6.179,2095.5,2094.3,7.30708]
[1625158523034,6.179,2095.5,2094.4,0.06]
[1625158523133,6.179,2095.5,2094.4,3.7411]
[1625158523277,21.671,2095.7,2094.5,0.15]
[1625158523380,10.7298,2095.7,2094.5,0.15]
[1625158523825,7.15644,2095.8,2094.5,0.15]
[1625158524028,0.23539,2096.0,2094.5,0.15]
[1625158524826,0.01440186,2095.9,2094.5,0.15]
[1625158525333,20.2,2095.8,2094.4,52.65913]
[1625158525427,0.01440186,2095.9,2094.8,7.15534]
[1625158525542,0.01440186,2095.9,2094.8,12.16534]
[1625158525633,0.01440186,2095.9,2094.9,0.15]
[1625158525731,0.01440186,2095.9,2094.9,4.1434]
[1625158525985,6.61473009,2095.9,2094.9,4.1434]
[1625158526288,13.89497137,2095.9,2094.9,4.1434]
[1625158526439,11.13448865,2095.9,2094.9,4.1434]
[1625158526540,16.14448865,2095.9,2094.9,3.9934]
[1625158526645,23.30060865,2095.9,2094.9,3.9934]
[1625158526740,0.06,2095.8,2094.5,5.01]
[1625158526889,0.06,2095.8,2094.4,15.3912]
[1625158526989,16.14448865,2095.9,2094.4,15.3912]
[1625158527237,3.57868,2095.7,2094.4,15.3912]
[1625158527441,8.58868,2095.7,2094.4,15.3912]
[1625158527886,7.15816,2095.3,2094.4,5.01]
[1625158528037,9.54383,2095.6,2094.3,0.15]
[1625158528038,9.58383,2095.6,2094.3,0.15]
[1625158528137,9.58383,2095.6,2094.2,36.6782]
[1625158528237,20.73283,2095.6,2094.2,36.6782]
[1625158528340,3.57963,2095.5,2094.2,36.6782]
[1625158528493,6.60032823,2095.4,2094.2,36.6782]
[1625158528592,3.57938,2095.3,2094.2,31.6682]
[1625158528788,8.58938,2095.3,2094.2,31.6682]
[1625158528890,7.15873,2095.1,2094.2,31.6682]
[1625158529893,7.15873,2095.1,2094.2,26.2064]
[1625158530045,7.15873,2095.1,2094.2,21.1964]
[1625158530796,12.16873,2095.1,2094.2,21.1964]
[1625158531045,7.15873,2095.1,2094.2,21.1964]
[1625158531449,7.15873,2095.1,2094.2,26.2064]
[1625158531606,13.12465,2095.3,2094.2,26.2064]
[1625158531607,3.57938,2095.3,2094.2,26.2064]
[1625158531703,3.57938,2095.3,2094.2,30.8122]
[1625158531798,8.58938,2095.3,2094.2,30.8122]
[1625158532642,8.58938,2095.3,2094.3,0.15]
[1625158533295,7.15847,2095.2,2094.3,0.15]